Cogmind - Beta 13 @@@ ROGUE MODE // 2024.05.01 @ 12:24:22 Player: satan5 Result: Destroyed by P-80 Master with Gamma Rifle Performance ------------- Evolutions (7) 3500 Regions Visited (24) 4800 Robots Destroyed (268) 1340 Value Destroyed (11728) 11728 Prototype IDs (50) 1000 Alien Tech Used (0) 0 Bonus (7554) 7554 TOTAL SCORE: 29922 Bonus ------- High Alert Combat Kills 2524 Follower Combat Kills 3583 Met Data Miner 300 Met Warlord at Base 500 MAIN.C Attacked Warlord 500 Warlord Defense Kills 742 Built Enhanced Grunts 300 A7 Reached Mainframe 300 Met R17 at Cetus 500 Met R17 at Research 2000 Friendly Fire -3695 Cogmind --------- Core Integrity 0/1300 Matter 300/300 Energy 698/700 System Corruption 4% Temperature Cool (0) Movement Core (50) Location -3/Research Parts ------- > --- POWER (2) -------- (None) > --- PROPULSION (6) --- (None) > --- UTILITY (11) ----- Experimental Energy Well Experimental Core Analyzer Experimental Core Analyzer Improved System Shield > --- WEAPON (2) ------- (None) > --- INVENTORY (5) ---- Light Antimatter Reactor Dynamic Insulation System Hacking Drone Bay (1/1) Smartbomb Launcher Peak State ------------ > --- POWER ------------ Antimatter Reactor Light Antimatter Reactor > --- PROPULSION ------- Enhanced Flexi-carbon Leg Myomer Leg Advanced Myomer Leg Biometal Leg Enhanced Biometal Leg Enhanced Biometal Leg > --- UTILITY ---------- Experimental Heat Sink Large Storage Unit Experimental Targeting Computer Experimental Core Analyzer Experimental Core Analyzer Advanced Kinecellerator Makeshift Transmission Jammer Advanced Focal Shield Force Field Improved System Shield Experimental System Shield > --- WEAPON ----------- Helical Railgun Linear Accelerator > --- INVENTORY -------- Light Antimatter Reactor Flexi-carbon Leg Enhanced Biometal Leg Advanced Sensor Array Dynamic Insulation System Hacking Drone Bay Cooled Plasma Cannon Coil Gun KE Penetrator Railgun Helical Railgun Smartbomb Launcher Neutron Missile Launcher [Rating: 161] Favorites ----------- Power Cooled Deuterium Engine Engine Cooled Deuterium Engine Power Core Neutrino Core Reactor Antimatter Reactor Propulsion Armored Leg Treads Light Treads Leg Armored Leg Wheel Wheel Utility Makeshift Transmission Jammer Device Makeshift Transmission Jammer Storage Medium Storage Unit Processor Improved Signal Interpreter Hackware Experimental System Shield Protection Hardened Medium Armor Plating Weapon Cooled Plasma Cannon Energy Gun Subdweller Laser Energy Cannon Cooled Plasma Cannon Ballistic Gun Subdweller Machine Gun Ballistic Cannon Hardcell Cannon Launcher Smartbomb Launcher Special Weapon Mining Laser Impact Weapon Powered Hammer Slashing Weapon Centrium Greatsword Piercing Weapon Plasma Lance Build | -11 -10 -10 -8 -7 -7 -7 -7 -6 -6 -6 -6 -6 -6 -6 -5 -5 -5 -5 -5 -4 -4 -4 -4 -3 ------- Run | Yrd Mat Sub Mat Fac Low Low Zio Pro Fac Was Fac Low Low Dat Pro Fac Upp Upp War Pro Fac Ext Cet Res Slots Evolved 14 | . . . 4 2 . . . . 2 . . . . . . 2 . . . . 2 . . 2 Power 1 | . . . . . . . . . . . . . . . . 1 . . . . . . . . Propulsion 4 | . . . 2 . . . . . . . . . . . . 1 . . . . 1 . . . Utility 9 | . . . 2 2 . . . . 2 . . . . . . . . . . . 1 . . 2 Weapon . | . . . . . . . . . . . . . . . . . . . . . . . . . Parts Attached 398 | 7 1 32 34 64 10 6 4 7 4 3 7 1 . 4 1 18 . 1 23 2 23 25 11 110 Power 45 | 2 . 5 5 4 . 2 . . . . 1 . . . . 1 . . 5 . 1 7 . 12 Engine 22 | 2 . 5 4 3 . 2 . . . . 1 . . . . 1 . . 3 . . 1 . . Core 8 | . . . 1 1 . . . . . . . . . . . . . . . . . 4 . 2 Reactor 15 | . . . . . . . . . . . . . . . . . . . 2 . 1 2 . 10 Propulsion 70 | 2 . 2 8 12 3 . . 1 . 1 2 . . . 1 3 . . 5 . 2 2 2 24 Treads 18 | 2 . 2 7 7 . . . . . . . . . . . . . . . . . . . . Leg 50 | . . . 1 3 3 . . 1 . 1 2 . . . 1 3 . . 5 . 2 2 2 24 Wheel 2 | . . . . 2 . . . . . . . . . . . . . . . . . . . . Hover . | . . . . . . . . . . . . . . . . . . . . . . . . . Flight . | . . . . . . . . . . . . . . . . . . . . . . . . . Utility 138 | 1 . 7 5 26 2 2 . 2 2 2 3 . . 2 . 12 . 1 7 . 16 5 3 40 Device 94 | . . 4 4 15 . 1 . 1 2 . 3 . . 1 . 10 . . 5 . 13 5 2 28 Storage 7 | 1 . . 1 . . . . . . . . . . 1 . 1 . . . . . . . 3 Processor 9 | . . . . 2 1 . . . . . . . . . . . . 1 . . . . . 5 Hackware 6 | . . . . 1 . 1 . . . 1 . . . . . 1 . . 1 . . . . 1 Protection 22 | . . 3 . 8 1 . . 1 . 1 . . . . . . . . 1 . 3 . 1 3 Artifact . | . . . . . . . . . . . . . . . . . . . . . . . . . Weapon 145 | 2 1 18 16 22 5 2 4 4 2 . 1 1 . 2 . 2 . . 6 2 4 11 6 34 Energy Gun 21 | 1 . 6 6 . 3 1 1 . . . . . . . . . . . . . . 3 . . Energy Cannon 44 | . . . 3 11 1 . . . 2 . . 1 . 1 . 1 . . 3 2 2 5 4 8 Ballistic Gun 25 | 1 . 5 4 . . . 3 2 . . . . . . . . . . 1 . 2 . . 7 Ballistic Cannon 10 | . . 2 . . . . . . . . . . . . . . . . . . . . . 8 Launcher 31 | . . 4 1 8 1 1 . 2 . . 1 . . . . 1 . . 1 . . 3 2 6 Special Weapon 1 | . 1 . . . . . . . . . . . . . . . . . . . . . . . Impact Weapon 8 | . . 1 2 3 . . . . . . . . . 1 . . . . 1 . . . . . Slashing Weapon 4 | . . . . . . . . . . . . . . . . . . . . . . . . 4 Piercing Weapon 1 | . . . . . . . . . . . . . . . . . . . . . . . . 1 Special Melee Weapon . | . . . . . . . . . . . . . . . . . . . . . . . . . Unidentified Prototypes 40 | . . . 5 3 . . . . 1 1 . . . 1 . . . . 7 . 1 . 2 19 Parts Lost 85 | . . 7 5 18 4 2 . . . . . . . . . . . . . . 2 2 2 43 Power 13 | . . 3 2 1 . . . . . . . . . . . . . . . . . . . 7 Propulsion 28 | . . 2 . 7 . 1 . . . . . . . . . . . . . . . 1 1 16 Utility 30 | . . 2 1 7 3 1 . . . . . . . . . . . . . . 2 . 1 13 Weapon 14 | . . . 2 3 1 . . . . . . . . . . . . . . . . 1 . 7 Highest Loss Streak 13 | . . 2 2 8 4 2 . . . . . . . . . . . . . . 2 1 2 13 To Critical Strikes 2 | . . . . . . . . . . . . . . . . . . . . . . . 2 . Average Slot Usage (%) 93 | . 85 98 78 83 89 85 92 99 92 99 100 100 100 100 100 99 100 100 99 95 92 86 91 94 Engine 7 | . 14 13 6 4 7 7 7 7 6 6 6 6 6 6 6 11 11 11 10 11 2 3 5 . Reactor 1 | . . . . . . . . . . . . . . . . . . . . . 3 1 5 7 Treads 9 | . 28 28 28 18 6 . . . . . . . . . . . . . . . . . . . Leg 18 | . . . 2 2 19 23 23 29 26 26 26 26 26 26 26 28 29 29 29 29 31 30 27 27 Device 14 | . . 1 10 13 7 11 15 15 18 26 26 26 26 26 26 20 17 17 17 17 15 14 20 23 Storage 7 | . 14 14 9 7 7 7 7 7 6 6 6 6 6 6 6 5 5 5 5 5 5 5 5 4 Processor 4 | . . . . 5 6 7 7 7 6 6 6 6 6 6 6 5 5 5 5 5 4 . . 6 Hackware 6 | . . . . 1 . 2 7 7 6 6 6 6 6 6 6 7 11 11 13 17 15 15 15 12 Protection 5 | . . 11 2 5 12 7 7 7 6 5 6 6 6 6 6 5 5 5 2 . 2 . 4 . Energy Gun 2 | . 13 7 5 . 4 6 7 . . . . . . . . . . . . . . 1 . . Energy Cannon 5 | . . . . 12 7 7 1 . 10 13 12 9 13 12 13 11 11 11 6 3 9 7 5 1 Ballistic Gun 4 | . 14 13 11 . . . 5 13 2 . . . . . . . . . . . . . . . Ballistic Cannon 1 | . . 4 . . . . . . . . . . . . . . . . . . . . . 3 Naked Turns . | . . . . . . . . . . . . . . . . . . . . . . . . . Heaviest Build 95 | 13 13 22 36 81 62 57 39 47 52 55 57 57 54 54 54 77 77 77 79 69 90 82 88 95 Greatest Support 176 | 40 40 40 80 80 60 60 40 60 60 66 67 67 67 67 67 87 87 87 112 112 137 132 144 176 Greatest Overweight (x) 8 | . . . . 8 6 . . . . . . . . . . . . . . . . . . . Average Overweight (x) . | . . . . 2 1 . . . . . . . . . . . . . . . . . . . Largest Inventory Capacity 15 | 8 8 8 10 10 10 10 10 10 10 10 10 10 10 10 10 15 15 15 15 15 15 15 15 15 Average Capacity 11 | 7 8 8 8 10 10 10 10 10 10 10 10 10 10 10 10 12 15 15 15 15 15 15 15 14 Most Carried 15 | 5 7 8 10 10 10 10 10 10 10 10 10 9 10 10 10 13 15 15 15 15 15 15 15 15 Average Carried 10 | 2 5 7 8 9 9 9 9 9 9 9 9 9 9 10 9 10 13 15 14 14 14 14 13 14 Final Capacity 15 | 8 8 8 10 10 10 10 10 10 10 10 10 10 10 10 10 15 15 15 15 15 15 15 15 5 Final Carried 15 | 3 7 8 10 10 10 10 10 10 10 10 9 9 10 10 10 13 15 15 15 15 15 15 15 5 Class Distribution -------------------- 28% | Mutant 27% | Hacker-Mutant 27% | Scavenger-Mutant 7% | Scavenger-Skirmisher 6% | Hacker-Skirmisher Dominant Class ---------------- Mutant | -10/Materials Mutant | -10/Subcaves Scavenger-Skirmisher | -8/Materials Scavenger-Skirmisher | -7/Factory Scavenger-Mutant | -7/Lower Caves Scavenger-Mutant | -7/Lower Caves Scavenger-Mutant | -7/Zion Scavenger-Mutant | -6/Proximity Caves Scavenger-Mutant | -6/Factory Scavenger-Mutant | -6/Waste Mutant | -6/Factory Mutant | -6/Lower Caves Mutant | -6/Lower Caves Mutant | -6/Data Miner Scavenger-Mutant | -5/Proximity Caves Scavenger-Mutant | -5/Factory Hacker-Mutant | -5/Upper Caves Hacker-Mutant | -5/Upper Caves Hacker-Mutant | -5/Warlord Hacker-Mutant | -4/Proximity Caves Hacker-Mutant | -4/Factory Hacker-Skirmisher | -4/Extension Hacker-Mutant | -4/Cetus Hacker-Mutant | -3/Research Resources | -11 -10 -10 -8 -7 -7 -7 -7 -6 -6 -6 -6 -6 -6 -6 -5 -5 -5 -5 -5 -4 -4 -4 -4 -3 ----------- Run | Yrd Mat Sub Mat Fac Low Low Zio Pro Fac Was Fac Low Low Dat Pro Fac Upp Upp War Pro Fac Ext Cet Res Matter Collected 8019 | 232 60 690 455 746 472 102 84 449 . 70 50 66 . 40 10 172 32 20 264 99 505 419 194 2788 Remotely . | . . . . . . . . . . . . . . . . . . . . . . . . . Salvage Created 11719 | 14 60 553 920 1537 511 40 . 689 . 251 107 . 30 95 25 1249 66 . 201 93 1141 1263 34 2840 Parts 532 | 3 5 37 52 111 15 . . 29 . 1 10 . . 1 1 55 3 . 8 1 57 53 3 87 Haulers Intercepted 17 | . . . 4 3 . . . . . . . . . . . 3 . . . . 2 1 . 4 Recyclers Shooed 7 | . . . 1 1 . . . . . . . . . . . . . . . . 2 2 . 1 Parts Field Recycled . | . . . . . . . . . . . . . . . . . . . . . . . . . Retrieved Matter . | . . . . . . . . . . . . . . . . . . . . . . . . . Parts Self-Destructed 66 | . . 3 . . 6 . . 34 . . . 4 13 . 4 . 1 . . 1 . . . . Prevented . | . . . . . . . . . . . . . . . . . . . . . . . . . Kills | -11 -10 -10 -8 -7 -7 -7 -7 -6 -6 -6 -6 -6 -6 -6 -5 -5 -5 -5 -5 -4 -4 -4 -4 -3 ------- Run | Yrd Mat Sub Mat Fac Low Low Zio Pro Fac Was Fac Low Low Dat Pro Fac Upp Upp War Pro Fac Ext Cet Res Combat Hostiles Destroyed 187 | . 1 15 20 26 8 4 . 14 . 1 1 . 1 1 1 15 . . 6 5 10 17 2 39 Melee 1 | . . . . . . . . . . . . . . . . . . . . . . . . 1 Guns 44 | . 1 8 17 . . 1 . 13 . . . . . . . . . . . . 1 . . 3 Cannons 75 | . . 2 . 13 1 . . . . 1 1 . 1 . 1 12 . . . . 7 10 . 26 AOE 63 | . . 5 3 13 6 3 . 1 . . . . . . . 3 . . 6 5 1 6 2 9 Classes Destroyed 23 | 1 1 3 6 5 . . . 2 . 1 . . . . . . . . . . 1 1 . 2 Worker 5 | . . . 1 3 . . . . . . . . . . . 1 . . . . . . . . Builder 18 | . . . 1 11 . . . . . . 1 . . . . 1 . . . . 3 . . 1 Tunneler 6 | 1 1 . 1 1 . . . . . . 1 . . . . . . . . . . . . 1 Hauler 17 | . . . 4 3 . . . . . . . . . . . 3 . . . . 2 1 . 4 Recycler 8 | . . . . 2 . . . . . . . . . . . 1 . . . . 1 2 . 2 Operator 3 | . . . . 1 . . . . . . . . . . . . . . . . . 1 . 1 Drone 1 | . . . . . . . . . . . . . . . . . . . . . 1 . . . Watcher 14 | . . . 2 2 . . . . . . . . . . . 5 . . . . 3 . 2 . Swarmer 35 | . . 2 7 3 . . . 6 . . . . . . . 5 . . 1 2 1 3 . 5 Grunt 62 | . 1 . 9 12 6 4 . 3 . . . . . . 1 4 . . 1 . 4 4 . 13 Brawler 4 | . . . 1 . 2 . . . . . . . . . . . . . . . . 1 . . Duelist 3 | . . . . 2 . . . . . . . . . . . . . . . . . . . 1 Protector 1 | . . . . . . . . 1 . . . . . . . . . . . . . . . . Sentry 17 | . . 1 2 2 . . . 3 . . . . 1 . . 1 . . . 1 . 5 . 1 Demolisher 3 | . . . . . . . . 1 . . . . . . . . . . . . . . . 2 Hunter 11 | . . . . 2 . . . . . . 1 . . . . 1 . . . 2 . 1 . 4 Programmer 18 | . . . . 5 . . . . . . . . . . . 4 . . 3 . 4 2 . . Heavy 2 | . . . 1 . . . . . . . . . . . . . . . . . 1 . . . Behemoth 1 | . . . . . . . . . . . . . . . . . . . . . . 1 . . Compactor 1 | . . . . . . . . . . 1 . . . . . . . . . . . . . . Cetus Guard 2 | . . . . . . . . . . . . . . . . . . . . . . . 2 . Enhanced Grunt 2 | . . . . . . . . . . . . . . 1 . . . . . . . . . 1 Striker 10 | . . . . . . . . . . . . . . . . . . . . . . . . 10 Executioner 3 | . . . . . . . . . . . . . . . . . . . . . . . . 3 Subdweller 12 | . . 12 . . . . . . . . . . . . . . . . . . . . . . Decomposer 1 | . . . . . 1 . . . . . . . . . . . . . . . . . . . Thug 5 | . . . . . . . . . . . . . . . . . . . 1 . . . . 4 Savage 2 | . . . . . . . . 1 . . . . . . . . . . . . . . . 1 Butcher 1 | . . . . . . . . . . . . . . . . . . . . . . . . 1 Guerrilla 1 | . . . . . . . . . . . . . . . . . . . . . . . . 1 Wizard 1 | . . . . . . . . 1 . . . . . . . . . . . . . . . . Best Kill Streak 12 | 1 1 2 9 12 4 4 . 5 . 1 2 . 1 1 1 6 . . 3 3 5 4 2 8 Combat Bots Only 8 | . 1 2 7 4 4 4 . 5 . 1 1 . 1 1 1 5 . . 3 3 2 4 1 8 Max Kills in Single Turn 6 | 1 1 1 3 6 3 2 . 2 . 1 1 . 1 1 1 3 . . 3 2 1 3 1 6 Gunslinging 1 | . . . . . . . . 1 . . . . . . . . . . . . . . . . Exploded 3 | . . 1 2 3 2 2 . 1 . . . . . . . 3 . . 3 2 1 3 1 2 Melee 1 | . . . . . . . . . . . . . . . . . . . . . . . . 1 Uniques/NPCs Destroyed . | . . . . . . . . . . . . . . . . . . . . . . . . . Combat | -11 -10 -10 -8 -7 -7 -7 -7 -6 -6 -6 -6 -6 -6 -6 -5 -5 -5 -5 -5 -4 -4 -4 -4 -3 -------- Run | Yrd Mat Sub Mat Fac Low Low Zio Pro Fac Was Fac Low Low Dat Pro Fac Upp Upp War Pro Fac Ext Cet Res Hostile Shots Fired 1081 | . 7 59 97 160 13 19 . 83 . 1 34 4 2 . . 40 6 . 2 25 56 68 12 393 Missed 308 | . . 19 29 46 1 6 . 23 . 1 12 4 . . . 14 3 . 1 10 16 21 3 99 Damage Taken 17201 | . 79 1023 1111 2933 434 212 . 816 . . 437 14 28 . . 384 42 . 25 224 1098 894 131 7316 Core 2449 | . 10 144 116 442 14 . . 43 . . 27 . . . . 28 . . . 16 180 116 12 1301 Absorbed by Shields 2248 | . . . 53 193 . . . . . . . . . . . 90 15 . 10 81 92 221 137 1356 Ignored by Resistances 667 | . . . . 41 . . . . . . . . . . . 15 . . . . 197 . . 414 Regen/Repaired (Parts) 1127 | . . . . . . . 847 . . 94 37 . . . . . . . 57 . 47 . . 45 Core Remaining (%) 72 | 100 . 38 78 . . . . 28 . . . . . . 96 . . . . 95 . . 73 . Volleys Fired 769 | 5 11 108 84 127 14 6 . 36 . 2 16 3 1 5 2 63 3 2 4 17 58 48 14 140 Largest 2 | 2 2 2 2 2 2 2 . 2 . 2 2 2 2 2 2 2 2 2 1 2 2 2 2 2 Hottest 210 | 60 100 120 116 160 143 130 . 78 . 70 210 70 70 210 70 210 70 70 46 70 210 210 210 210 Shots Fired 1408 | 10 20 208 157 216 27 9 . 72 . 4 30 5 2 10 4 114 6 4 5 22 112 92 15 264 Gun 527 | 10 19 180 152 . 7 1 . 68 . . . . . . . . . . . . 24 14 . 52 Cannon 774 | . . 13 . 193 14 3 . . . 4 29 4 2 10 4 113 6 4 1 10 88 70 3 203 Launcher 106 | . . 15 5 23 6 5 . 4 . . 1 1 . . . 1 . . 4 12 . 8 12 9 Special 1 | . 1 . . . . . . . . . . . . . . . . . . . . . . . Kinetic 493 | 5 10 91 84 . . . . 68 . . . . . . . . . . . . 24 . . 211 Thermal 809 | 5 10 102 68 193 21 4 . . . 4 29 4 2 10 4 113 6 4 1 10 88 84 3 44 Explosive 106 | . . 15 5 23 6 5 . 4 . . 1 1 . . . 1 . . 4 12 . 8 12 9 Electromagnetic . | . . . . . . . . . . . . . . . . . . . . . . . . . Robot Hit Streak 17 | 1 3 16 13 9 7 5 . 8 . 7 4 2 3 6 2 11 3 . . 7 17 14 4 16 Robot Miss Streak 8 | 2 3 2 6 3 3 1 . 3 . 1 3 1 . 2 1 5 . . . . 8 6 2 4 Penetration Max 1 | . . . . . . . . 1 . . . . . . . . . . . . 1 . . 1 Secondary Targets 4 | . . 1 1 . . . . 2 . . . . . . . . . . . . . . . . Max Gunslinging Chain 1 | . . 1 1 . . . . 1 . . . . . . . . . . . . . . . . Shots Hit Robots 724 | 4 9 53 100 106 16 5 . 45 . 2 16 3 2 7 3 62 1 . . 4 57 48 1 180 Core Hits 459 | 1 3 31 45 76 17 6 . 32 . 2 4 . 1 2 2 29 1 . 14 8 24 31 41 89 Critical Kills 10 | . . . 2 2 1 . . 3 . . . . . 1 . . . . . . . 1 . . Critical Parts Destroyed 5 | . . . 2 . . . . 3 . . . . . . . . . . . . . . . . Critical Strikes 25 | . . . 6 2 1 . . 6 . . . . . 1 . . . . . . . 1 . 8 Burn 2 | . . . 2 . . . . . . . . . . . . . . . . . . . . . Meltdown 5 | . . . . 2 1 . . . . . . . . 1 . . . . . . . 1 . . Destroy 10 | . . . 4 . . . . 6 . . . . . . . . . . . . . . . . Blast 6 | . . . . . . . . . . . . . . . . . . . . . . . . 6 Sever 2 | . . . . . . . . . . . . . . . . . . . . . . . . 2 Melee Attacks 38 | . . 1 4 9 . . . . . . . . . . . . . . 9 . . . . 15 Impact 23 | . . 1 4 9 . . . . . . . . . . . . . . 9 . . . . . Slashing 15 | . . . . . . . . . . . . . . . . . . . . . . . . 15 Piercing . | . . . . . . . . . . . . . . . . . . . . . . . . . Sneak Attacks 4 | . . . . . . . . . . . . . . . . . . . . . . . . 4 Combat Hostiles . | . . . . . . . . . . . . . . . . . . . . . . . . . Follow-up Attacks . | . . . . . . . . . . . . . . . . . . . . . . . . . Damage Inflicted 40043 | 47 99 1577 2493 4528 1197 786 . 1703 . 99 706 96 67 297 97 4174 31 . 990 959 3486 3905 2066 10640 Guns 5498 | 47 99 649 1973 . 70 18 . 1086 . . . . . . . . . . . . 370 189 . 997 Cannons 19476 | . . 157 . 2510 225 . . . . 99 706 96 67 297 97 3800 31 . . . 2926 2609 . 5856 Explosions 14024 | . . 771 520 2014 902 768 . 617 . . . . . . . 374 . . 990 959 190 1107 2066 2746 Melee 1038 | . . . . . . . . . . . . . . . . . . . . . . . . 1038 Ramming 7 | . . . . 4 . . . . . . . . . . . . . . . . . . . 3 Kinetic 8541 | . 66 386 1130 . . . . 1086 . . . . . . . . . . . . 370 . . 5503 Thermal 17004 | 47 33 420 843 2510 295 18 . . . 99 706 96 67 297 97 3800 31 . . . 2926 2798 . 1921 Explosive 13426 | . . 771 520 1987 902 768 . 617 . . . . . . . 374 . . 990 959 190 1107 2066 2175 Electromagnetic 27 | . . . . 27 . . . . . . . . . . . . . . . . . . . . Impact . | . . . . . . . . . . . . . . . . . . . . . . . . . Slashing 1038 | . . . . . . . . . . . . . . . . . . . . . . . . 1038 Piercing . | . . . . . . . . . . . . . . . . . . . . . . . . . Highest Corruption 19 | . . . . 18 19 19 19 . . . . . . . . 2 2 2 2 . 6 6 6 4 Average Corruption 7 | . . . . 11 18 19 19 . . . . . . . . 1 2 2 2 . 4 6 6 2 Corruption Purged 8 | . . . . 3 . . . . . . . . . . . . . . . . . . . 5 Corruption Blocked 2 | . . . . . 2 . . . . . . . . . . . . . . . . . . . Effects 194 | . . . . 31 28 20 6 . . . . . . . . 3 5 3 5 . 17 32 10 34 Message Errors 37 | . . . . 5 8 2 2 . . . . . . . . 2 2 . 1 . 3 6 1 5 Matter Fused 51 | . . . . 4 9 7 4 . . . . . . . . 1 . 2 1 . 6 7 3 7 Heat Flow Errors 27 | . . . . 8 2 4 . . . . . . . . . . 2 . 2 . 1 2 2 4 Energy Discharges 27 | . . . . 3 3 2 . . . . . . . . . . 1 . . . 3 6 . 9 Parts Rejected 5 | . . . . 2 . . . . . . . . . . . . . . . . . . . 3 Parts Fused 1 | . . . . . . . . . . . . . . . . . . . . . . . . 1 Data Loss (minor) 25 | . . . . 2 3 3 . . . . . . . . . . . 1 . . 2 6 4 4 Data Loss (major) 5 | . . . . 3 1 . . . . . . . . . . . . . . . 1 . . . Misfires 11 | . . . . 2 1 2 . . . . . . . . . . . . 1 . 1 4 . . Alerts 3 | . . . . 1 . . . . . . . . . . . . . . . . . 1 . 1 Weapon Failures 2 | . . . . 1 1 . . . . . . . . . . . . . . . . . . . Overload Shots 208 | . . . . . . . . . . . 12 . . 8 . 63 . . . . 65 52 2 6 Effects 21 | . . . . . . . . . . . 3 . . 1 . 2 . . . . 9 4 . 2 Energy Bleed 9 | . . . . . . . . . . . 1 . . . . 1 . . . . 3 3 . 1 Heat Surge 6 | . . . . . . . . . . . . . . 1 . . . . . . 3 1 . 1 Short Circuit 6 | . . . . . . . . . . . 2 . . . . 1 . . . . 3 . . . Overflow Damage 1775 | . . . 6 104 76 35 . . . . 76 . . 13 . 375 . . 74 39 276 89 . 612 Projectiles 1197 | . . . . 54 20 . . . . . 76 . . 13 . 350 . . . . 276 62 . 346 Explosions 425 | . . . 6 50 56 35 . . . . . . . . . 25 . . 74 39 . 27 . 113 Melee 153 | . . . . . . . . . . . . . . . . . . . . . . . . 153 Knockbacks 46 | . . 1 . . . . . . . . . . . . . . . . . . . . . 45 Impact . | . . . . . . . . . . . . . . . . . . . . . . . . . Kinetic 45 | . . 1 . . . . . . . . . . . . . . . . . . . . . 44 Secondary 1 | . . . . . . . . . . . . . . . . . . . . . . . . 1 Self-Inflicted Damage 831 | . . 61 36 268 216 . . . . . . . . . . . . . . . 42 . 40 168 Shots 21 | . . 3 1 8 4 . . . . . . . . . . . . . . . 1 . 1 3 Rammed . | . . . . . . . . . . . . . . . . . . . . . . . . . Targets Rammed 3 | . . . . 2 . . . . . . . . . . . . . . . . . . . 1 Kicked 3 | . . . . 2 . . . . . . . . . . . . . . . . . . . 1 Crushed . | . . . . . . . . . . . . . . . . . . . . . . . . . Highest Temperature 414 | . 30 87 243 405 117 183 . . . . 126 . . 218 . 403 278 . 252 . 391 246 187 414 Average Temperature 99 | . 16 20 44 125 34 74 . . . . 55 . . 82 . 113 125 . 118 . 170 69 63 94 Received Heat Transfer 1864 | . 42 168 324 492 81 117 . 120 . . . . . . . 36 9 . . 6 18 78 . 373 Effects 18 | . . . 1 8 . . . . . . . . . . . 2 3 . . . 4 . . . Shutdowns 1 | . . . . . . . . . . . . . . . . 1 . . . . . . . . Energy Bleed 3 | . . . . 1 . . . . . . . . . . . . . . . . 2 . . . Interference 14 | . . . 1 7 . . . . . . . . . . . 1 3 . . . 2 . . . Siege Activations . | . . . . . . . . . . . . . . . . . . . . . . . . . Robots Corrupted . | . . . . . . . . . . . . . . . . . . . . . . . . . Combat Hostiles . | . . . . . . . . . . . . . . . . . . . . . . . . . Parts Fried 1 | . . . . . . . . . . . . . . . . . . . . . . 1 . . Impact Corruptions . | . . . . . . . . . . . . . . . . . . . . . . . . . Robots Melted 6 | . . . . 2 1 . . . . . . . . 1 . . . . . . 1 1 . . Combat Hostiles 4 | . . . . . 1 . . . . . . . . 1 . . . . . . 1 1 . . Parts Melted 50 | . . 3 2 11 . . . . . . 3 . . 2 . 13 . . . . 9 5 . 2 Heat Transferred 23493 | 100 75 525 1739 4800 598 37 . . . 150 980 150 100 530 150 4640 50 . . . 3650 3360 . 1859 Parts Sabotaged . | . . . . . . . . . . . . . . . . . . . . . . . . . Parts Stolen . | . . . . . . . . . . . . . . . . . . . . . . . . . Parts Stripped . | . . . . . . . . . . . . . . . . . . . . . . . . . Power Chain Reactions 2 | . . . . . . . . . . . . . . . . . . . . . . . . 2 Alert | -11 -10 -10 -8 -7 -7 -7 -7 -6 -6 -6 -6 -6 -6 -6 -5 -5 -5 -5 -5 -4 -4 -4 -4 -3 ------- Run | Yrd Mat Sub Mat Fac Low Low Zio Pro Fac Was Fac Low Low Dat Pro Fac Upp Upp War Pro Fac Ext Cet Res Peak Influence 1635 | 5 53 . 513 673 . . . . 138 49 925 . . . . 784 . . . . 294 502 610 1635 Initial 366 | . 3 . . 209 . . . . 138 48 34 . . . . 113 . . . . 9 7 217 366 Average 459 | 2 34 . 174 418 . . . . 138 48 274 . . . . 493 . . . . 111 245 478 1051 Maximum Alert Level 5 | . . . 2 2 . . . . . . 3 . . . . 3 . . . . 1 2 2 5 Low Security (%) 29 | 100 100 . 66 . . . . . 100 100 50 . . . . 8 . . . . 82 30 . . Level 1 24 | . . . 15 49 . . . . . . 22 . . . . 15 . . . . 17 57 8 4 Level 2 25 | . . . 17 50 . . . . . . 18 . . . . 69 . . . . . 11 91 3 Level 3 14 | . . . . . . . . . . . 8 . . . . 6 . . . . . . . 59 Level 4 6 | . . . . . . . . . . . . . . . . . . . . . . . . 29 Level 5 . | . . . . . . . . . . . . . . . . . . . . . . . . 3 High Security . | . . . . . . . . . . . . . . . . . . . . . . . . . Max Security . | . . . . . . . . . . . . . . . . . . . . . . . . . Squads Dispatched 59 | . 3 . 6 18 . . . . . . 5 . 1 . . 9 . . . . 6 4 . 7 Investigation 14 | . 1 . 3 2 . . . . . . . . 1 . . 1 . . . . 1 4 . 1 Extermination 10 | . . . . 4 . . . . . . 2 . . . . 2 . . . . 2 . . . Reinforcement 26 | . 2 . 2 7 . . . . . . 3 . . . . 3 . . . . 3 . . 6 Assault 2 | . . . . 2 . . . . . . . . . . . . . . . . . . . . Garrison 7 | . . . 1 3 . . . . . . . . . . . 3 . . . . . . . . Intercept . | . . . . . . . . . . . . . . . . . . . . . . . . . Searches Triggered . | . . . . . . . . . . . . . . . . . . . . . . . . . Construction Impeded 4 | . . . . 3 . . . . . . . . . . . . . . . . . . . 1 Haulers Reinforced 9 | . . . . 2 . . . . . . 1 . . . . 3 . . . . . . . 3 Active Scanning Responses 7 | . . . 2 2 . . . . . . . . . . . . . . . . . 3 . . Cargo Convoy Interrupts . | . . . . . . . . . . . . . . . . . . . . . . . . . Stealth | -11 -10 -10 -8 -7 -7 -7 -7 -6 -6 -6 -6 -6 -6 -6 -5 -5 -5 -5 -5 -4 -4 -4 -4 -3 --------- Run | Yrd Mat Sub Mat Fac Low Low Zio Pro Fac Was Fac Low Low Dat Pro Fac Upp Upp War Pro Fac Ext Cet Res Distress Signals 35 | . . . 4 2 . . . 15 . . 1 . . . . 3 . . . . 3 . 1 6 Communications Jammed 141 | . . . . . . . . 2 . . 5 . . . . 47 . . . . 7 . . 80 Distress Signals 132 | . . . . . . . . 2 . . 3 . . . . 46 . . . . 1 . . 80 Times Spotted 345 | . 2 19 29 40 6 4 . 21 . 1 12 8 7 3 4 31 1 . 23 4 18 27 7 78 Peak Tracking Total 11 | . 2 3 6 6 4 4 . 6 . 1 3 2 3 2 4 5 1 . 11 2 4 4 5 8 Tactical Retreats 26 | . . 1 1 5 . . . . . . . . . . . 4 1 . 2 1 4 . . 7 Traps | -11 -10 -10 -8 -7 -7 -7 -7 -6 -6 -6 -6 -6 -6 -6 -5 -5 -5 -5 -5 -4 -4 -4 -4 -3 ------- Run | Yrd Mat Sub Mat Fac Low Low Zio Pro Fac Was Fac Low Low Dat Pro Fac Upp Upp War Pro Fac Ext Cet Res Traps Triggered 14 | . 1 3 1 4 . . . . 1 . . . . . . . . . . . . 1 . 3 Indirectly . | . . . . . . . . . . . . . . . . . . . . . . . . . Trap Hack Attempts . | . . . . . . . . . . . . . . . . . . . . . . . . . Triggered . | . . . . . . . . . . . . . . . . . . . . . . . . . Disarmed . | . . . . . . . . . . . . . . . . . . . . . . . . . Reprogrammed . | . . . . . . . . . . . . . . . . . . . . . . . . . Reused . | . . . . . . . . . . . . . . . . . . . . . . . . . Traps Extracted . | . . . . . . . . . . . . . . . . . . . . . . . . . Installed . | . . . . . . . . . . . . . . . . . . . . . . . . . Triggered 8 | . . . . . . . . . . . . . . . . . . . 7 . . . . 1 Most Traps Carried 1 | . . 1 . . . . . . . . . . . . . . . . . . . . . . Machines | -11 -10 -10 -8 -7 -7 -7 -7 -6 -6 -6 -6 -6 -6 -6 -5 -5 -5 -5 -5 -4 -4 -4 -4 -3 ---------- Run | Yrd Mat Sub Mat Fac Low Low Zio Pro Fac Was Fac Low Low Dat Pro Fac Upp Upp War Pro Fac Ext Cet Res Machines Disabled 42 | . . 2 2 9 . . . . . . 10 . 2 1 . 4 . . . . 4 2 1 5 Max in Single Turn 2 | . . 2 1 2 . . . . . . 1 . . 1 . 1 . . . . 2 1 1 1 Garrison Access 3 | . . . 1 . . . . . . . . . . . . . . . . . 1 . . 1 Machines Repaired . | . . . . . . . . . . . . . . . . . . . . . . . . . Machines Dismantled . | . . . . . . . . . . . . . . . . . . . . . . . . . Machines Sabotaged . | . . . . . . . . . . . . . . . . . . . . . . . . . Overloaded Fab Kills . | . . . . . . . . . . . . . . . . . . . . . . . . . Hacking | -11 -10 -10 -8 -7 -7 -7 -7 -6 -6 -6 -6 -6 -6 -6 -5 -5 -5 -5 -5 -4 -4 -4 -4 -3 --------- Run | Yrd Mat Sub Mat Fac Low Low Zio Pro Fac Was Fac Low Low Dat Pro Fac Upp Upp War Pro Fac Ext Cet Res Machines Accessed 63 | . . 1 7 7 . 1 . . 1 . 3 . 1 4 . 5 . . 3 . 8 13 3 6 Terminals 36 | . . . 5 5 . 1 . . . . 1 . 1 . . 2 . . . . 3 13 3 2 Fabricators 5 | . . . . 2 . . . . . . 1 . . . . . . . . . 1 . . 1 Repair Stations 7 | . . . . . . . . . . . . . . . . 2 . . . . 3 . . 2 Recycling Units 1 | . . . 1 . . . . . . . . . . . . . . . . . . . . . Scanalyzers . | . . . . . . . . . . . . . . . . . . . . . . . . . Garrison Access 6 | . . . 1 . . . . . 1 . 1 . . . . 1 . . . . 1 . . 1 Total Hacks 203 | . . 1 20 28 . 1 . . 1 . 5 . 4 30 . 17 . . 6 . 20 44 9 17 Successful 114 | . . 1 8 12 . 1 . . . . 2 . 4 30 . 3 . . 6 . 15 23 4 5 Failed 89 | . . . 12 16 . . . . 1 . 3 . . . . 14 . . . . 5 21 5 12 Catastrophic 13 | . . . 2 2 . . . . 1 . 1 . . . . 2 . . . . . 3 1 1 Database Lockouts . | . . . . . . . . . . . . . . . . . . . . . . . . . Manual 88 | . . 3 14 19 . . . . . . 2 . . . . 7 . . 1 . 5 30 1 6 Terminals 117 | . . . 16 17 . 1 . . . . 2 . 4 . . 7 . . . . 11 44 9 6 Fabricators 18 | . . . . 11 . . . . . . 2 . . . . . . . . . 2 . . 3 Repair Stations 20 | . . . . . . . . . . . . . . . . 8 . . . . 6 . . 6 Recycling Units 1 | . . . 1 . . . . . . . . . . . . . . . . . . . . . Scanalyzers . | . . . . . . . . . . . . . . . . . . . . . . . . . Garrison Access 10 | . . . 3 . . . . . 1 . 1 . . . . 2 . . . . 1 . . 2 Terminal Hacks 75 | . . 1 1 4 . 1 . . . . . . 4 30 . . . . 6 . 8 16 4 . Record 27 | . . 1 . . . 1 . . . . . . 4 11 . . . . 4 . . 2 4 . Part Schematic 10 | . . . . . . . . . . . . . . 10 . . . . . . . . . . Robot Schematic 6 | . . . . . . . . . . . . . . 6 . . . . . . . . . . Prototype ID Bank 4 | . . . . 1 . . . . . . . . . 3 . . . . . . . . . . Open Door 10 | . . . . . . . . . . . . . . . . . . . 2 . 1 7 . . Branch Access Points 2 | . . . . 1 . . . . . . . . . . . . . . . . 1 . . . Machine Index 1 | . . . . . . . . . . . . . . . . . . . . . . 1 . . Alert Level 1 | . . . . . . . . . . . . . . . . . . . . . 1 . . . Unreport Threat 10 | . . . . 2 . . . . . . . . . . . . . . . . 3 5 . . Locate Traps 2 | . . . . . . . . . . . . . . . . . . . . . 1 1 . . Hauler Manifests 2 | . . . 1 . . . . . . . . . . . . . . . . . 1 . . . Fabricator Hacks 7 | . . . . 3 . . . . . . 1 . . . . . . . . . 2 . . 1 Network Status 2 | . . . . 2 . . . . . . . . . . . . . . . . . . . . Load Schematic 2 | . . . . . . . . . . . . . . . . . . . . . 1 . . 1 Build 3 | . . . . 1 . . . . . . 1 . . . . . . . . . 1 . . . Repair Station Hacks 6 | . . . . . . . . . . . . . . . . 2 . . . . 2 . . 2 Scan Component 4 | . . . . . . . . . . . . . . . . 2 . . . . 1 . . 1 Repair 2 | . . . . . . . . . . . . . . . . . . . . . 1 . . 1 Recycling Unit Hacks 1 | . . . 1 . . . . . . . . . . . . . . . . . . . . . Retrieve Components 1 | . . . 1 . . . . . . . . . . . . . . . . . . . . . Scanalyzer . | . . . . . . . . . . . . . . . . . . . . . . . . . Garrison Access Hacks 3 | . . . 1 . . . . . . . . . . . . . . . . . 1 . . 1 Seal Access 3 | . . . 1 . . . . . . . . . . . . . . . . . 1 . . 1 Unauthorized Hacks 22 | . . . 5 5 . . . . . . 1 . . . . 1 . . . . 2 7 . 1 Terminals 19 | . . . 5 2 . . . . . . 1 . . . . 1 . . . . 2 7 . 1 Track 4 | . . . 2 . . . . . . . . . . . . . . . . . 1 1 . . Botnet 13 | . . . 3 2 . . . . . . 1 . . . . 1 . . . . 1 4 . 1 Disrupt 2 | . . . . . . . . . . . . . . . . . . . . . . 2 . . Fabricators 3 | . . . . 3 . . . . . . . . . . . . . . . . . . . . Liberate 1 | . . . . 1 . . . . . . . . . . . . . . . . . . . . Fabnet 1 | . . . . 1 . . . . . . . . . . . . . . . . . . . . Haulers 1 | . . . . 1 . . . . . . . . . . . . . . . . . . . . Repair Stations . | . . . . . . . . . . . . . . . . . . . . . . . . . Recycling Units . | . . . . . . . . . . . . . . . . . . . . . . . . . Scanalyzers . | . . . . . . . . . . . . . . . . . . . . . . . . . Garrison Access . | . . . . . . . . . . . . . . . . . . . . . . . . . Data Cores Recovered . | . . . . . . . . . . . . . . . . . . . . . . . . . Used . | . . . . . . . . . . . . . . . . . . . . . . . . . Hacking Detections 41 | . . . 5 7 . . . . 1 . 2 . 1 . . 5 . . . . 5 7 2 6 Full Trace Events 4 | . . . . . . . . . . . . . 1 . . 1 . . . . 1 1 . . Feedback Events . | . . . . . . . . . . . . . . . . . . . . . . . . . Feedback Blocked . | . . . . . . . . . . . . . . . . . . . . . . . . . Robot Schematics Acquired 6 | . . . . . . . . . . . . . . 6 . . . . . . . . . . Robots Built . | . . . . . . . . . . . . . . . . . . . . . . . . . Authchips . | . . . . . . . . . . . . . . . . . . . . . . . . . Time . | . . . . . . . . . . . . . . . . . . . . . . . . . Total Robot Build Rating . | . . . . . . . . . . . . . . . . . . . . . . . . . Part Schematics Acquired 10 | . . . . . . . . . . . . . . 10 . . . . . . . . . . Parts Built 3 | . . . . 1 . . . . . . 1 . . . . . . . . . 1 . . . Authchips . | . . . . . . . . . . . . . . . . . . . . . . . . . Time 381 | . . . . 95 . . . . . . 117 . . . . . . . . . 169 . . . Total Part Build Rating 18 | . . . . 5 . . . . . . 7 . . . . . . . . . 6 . . . Parts Repaired 2 | . . . . . . . . . . . . . . . . . . . . . 1 . . 1 Time 44 | . . . . . . . . . . . . . . . . . . . . . 28 . . 16 Parts Recycled . | . . . . . . . . . . . . . . . . . . . . . . . . . Recycled Matter . | . . . . . . . . . . . . . . . . . . . . . . . . . Retrieved Matter . | . . . . . . . . . . . . . . . . . . . . . . . . . Retrieved Components 10 | . . . 10 . . . . . . . . . . . . . . . . . . . . . Parts Scanalyzed . | . . . . . . . . . . . . . . . . . . . . . . . . . Part Schematics Acquired . | . . . . . . . . . . . . . . . . . . . . . . . . . Parts Damaged . | . . . . . . . . . . . . . . . . . . . . . . . . . Bothacking | -11 -10 -10 -8 -7 -7 -7 -7 -6 -6 -6 -6 -6 -6 -6 -5 -5 -5 -5 -5 -4 -4 -4 -4 -3 ------------ Run | Yrd Mat Sub Mat Fac Low Low Zio Pro Fac Was Fac Low Low Dat Pro Fac Upp Upp War Pro Fac Ext Cet Res Used RIF Installer . | . . . . . . . . . . . . . . . . . . . . . . . . . Robots Hacked 2 | . . . . . . . . 1 . . . . . . . 1 . . . . . . . . Non-combat . | . . . . . . . . . . . . . . . . . . . . . . . . . Combat 2 | . . . . . . . . 1 . . . . . . . 1 . . . . . . . . Robot Hacks Applied . | . . . . . . . . . . . . . . . . . . . . . . . . . Relay Couplers Released . | . . . . . . . . . . . . . . . . . . . . . . . . . Fabnet Peak Effective % 3 | . . . . . . . . 3 3 3 3 3 3 3 1 1 1 1 1 . . . . . Autooverrided 2 | . . . . . . . . 1 . . . . . . . 1 . . . . . . . . Robots Rewired . | . . . . . . . . . . . . . . . . . . . . . . . . . Allies Hacked 1 | . . . . . . . . . . . . . . . . . . . . . . . . 1 Hacks Repelled . | . . . . . . . . . . . . . . . . . . . . . . . . . Allies | -11 -10 -10 -8 -7 -7 -7 -7 -6 -6 -6 -6 -6 -6 -6 -5 -5 -5 -5 -5 -4 -4 -4 -4 -3 -------- Run | Yrd Mat Sub Mat Fac Low Low Zio Pro Fac Was Fac Low Low Dat Pro Fac Upp Upp War Pro Fac Ext Cet Res Total Allies 50 | . . . . 3 . . 7 1 . 20 . . . . . 1 . . . . . 13 5 . Largest Group 20 | . . . . 3 . . 7 8 . 20 20 15 12 10 10 10 . . . . . 12 16 13 Highest-Rated Group 1055 | . . . . 48 . . 181 210 . 766 760 617 511 432 432 432 . . . . . 613 1055 868 Highest-Rated Ally 159 | . . . . 16 . . 51 51 . 50 50 50 50 50 50 50 . . . . . 159 143 143 Total Orders 24 | . . . . 14 . . . . . . 4 . . . . 2 . . . . 4 . . . STAY 2 | . . . . 2 . . . . . . . . . . . . . . . . . . . . FOLLOW 3 | . . . . 2 . . . . . . 1 . . . . . . . . . . . . . EXPLORE 5 | . . . . 5 . . . . . . . . . . . . . . . . . . . . RETURN 14 | . . . . 5 . . . . . . 3 . . . . 2 . . . . 4 . . . Ally Attacks 515 | . . . . 27 . . . 32 . 20 82 34 28 26 7 45 . . . . 18 100 43 53 Total Damage 18351 | . . . . 349 . . . 959 . 429 2919 1952 1696 788 428 1561 . . . . 371 2810 1357 2732 Kills 107 | . . . . 5 . . . 7 . . 20 11 13 3 3 11 . . . . 1 13 7 13 Allies Corrupted 4 | . . . . 2 . . . . . . 1 . . . . . . . . . 1 . . . Allies Melted 2 | . . . . . . . . . . . . . 1 . . . . . 1 . . . . . Intel | -11 -10 -10 -8 -7 -7 -7 -7 -6 -6 -6 -6 -6 -6 -6 -5 -5 -5 -5 -5 -4 -4 -4 -4 -3 ------- Run | Yrd Mat Sub Mat Fac Low Low Zio Pro Fac Was Fac Low Low Dat Pro Fac Upp Upp War Pro Fac Ext Cet Res Robot Analysis Total . | . . . . . . . . . . . . . . . . . . . . . . . . . Derelict Logs Recovered 11 | . . 2 . . . 1 1 1 . . . 1 2 . 1 . 1 1 . . . . . . Drone Launches 16 | . . . . 6 . . . . . . 2 . . . . 2 . . . . 6 . . . Drone Recoveries 12 | . . . . 4 . . . . . . 2 . . . . 2 . . . . 4 . . . Exploration | -11 -10 -10 -8 -7 -7 -7 -7 -6 -6 -6 -6 -6 -6 -6 -5 -5 -5 -5 -5 -4 -4 -4 -4 -3 ------------- Run | Yrd Mat Sub Mat Fac Low Low Zio Pro Fac Was Fac Low Low Dat Pro Fac Upp Upp War Pro Fac Ext Cet Res Turns Passed 23340 | 68 311 4048 1395 2556 624 467 1273 659 74 386 614 449 402 170 268 1279 484 445 1229 620 1130 1363 332 2694 Spaces Moved 14702 | 37 97 2211 611 1139 412 369 1036 447 54 294 436 360 321 117 214 810 367 341 925 472 678 1011 228 1715 Core 69 | 18 . . . . . . . . . . . . . . . . . . . . . . . 51 Treads 3554 | 19 97 2211 611 616 . . . . . . . . . . . . . . . . . . . . Legs 10423 | . . . . 24 255 369 1036 447 54 294 436 360 321 117 214 810 367 341 925 472 678 1011 228 1664 Wheels 656 | . . . . 499 157 . . . . . . . . . . . . . . . . . . . Hover . | . . . . . . . . . . . . . . . . . . . . . . . . . Flight . | . . . . . . . . . . . . . . . . . . . . . . . . . Fastest Speed 50 | 50 160 160 160 155 120 120 120 120 120 120 120 120 120 120 120 120 120 120 110 110 106 110 110 50 Average Speed 130 | 106 160 160 161 178 134 120 120 120 120 120 120 120 120 120 120 120 120 120 116 110 106 110 110 113 Slowest Speed 540 | 160 160 160 163 540 330 120 120 120 120 120 120 120 120 120 120 120 120 120 120 110 110 111 111 120 Overloaded Moves . | . . . . . . . . . . . . . . . . . . . . . . . . . Propulsion Burnouts . | . . . . . . . . . . . . . . . . . . . . . . . . . Robots Hopped . | . . . . . . . . . . . . . . . . . . . . . . . . . Cave-ins Triggered 4 | . . . . 4 . . . . . . . . . . . . . . . . . . . . Exploration Rate (%) 53 | 4 18 97 50 32 55 52 84 60 1 94 21 54 64 78 35 30 52 62 97 55 18 85 79 49 Regions Visited 24 Branch Regions 15 Pre-discovered Areas 5 | . . 2 . . . . 1 1 . . . . . 1 . . . . . . . . . . Known Exits Taken 19 | . . . 1 1 1 1 1 1 . . 1 1 1 1 1 1 1 1 1 1 1 1 1 . Unknown Exits Taken 3 | 1 1 1 . . . . . . . . . . . . . . . . . . . . . . Scrap Searched 28 | . . 7 . . 2 5 2 1 . . . 1 1 . 2 . 3 2 . 2 . . . . Spaces Dug 232 | . . 24 4 87 . . . . . . 28 27 . . . 16 4 4 4 10 11 1 . 12 Terrain Destroyed 1316 | . . 86 34 185 76 53 . 11 . 1 36 28 . . 1 59 5 4 16 147 67 156 162 189 Melee 19 | . . 1 4 9 . . . . . . . . . . . . . . 4 . . . . 1 Projectile 293 | . . 31 6 33 . 1 . 10 . 1 9 1 . . 1 42 5 4 1 10 43 17 2 76 AOE 1003 | . . 54 24 143 76 52 . . . . 27 27 . . . 17 . . 11 137 24 139 160 112 Terrain Rammed . | . . . . . . . . . . . . . . . . . . . . . . . . . Walls Destroyed . | . . . . . . . . . . . . . . . . . . . . . . . . . Machines Disabled . | . . . . . . . . . . . . . . . . . . . . . . . . . Actions | -11 -10 -10 -8 -7 -7 -7 -7 -6 -6 -6 -6 -6 -6 -6 -5 -5 -5 -5 -5 -4 -4 -4 -4 -3 --------- Run | Yrd Mat Sub Mat Fac Low Low Zio Pro Fac Was Fac Low Low Dat Pro Fac Upp Upp War Pro Fac Ext Cet Res Total 17396 | 54 230 2507 857 1425 453 384 1066 496 63 324 499 371 336 135 222 1000 404 372 1055 550 974 1166 294 2159 Wait 1043 | . 118 109 80 32 10 . 19 1 . 15 21 8 14 8 3 97 33 29 64 58 190 43 29 62 Move 14677 | 36 96 2210 610 1136 411 368 1035 446 54 293 435 359 320 116 213 809 366 340 924 471 677 1010 227 1715 Hop . | . . . . . . . . . . . . . . . . . . . . . . . . . Pick Up 209 | 6 4 27 18 33 4 2 4 2 3 4 4 . 1 . 1 6 2 . 8 1 12 16 6 45 Fast Attach 118 | 3 . 1 13 12 3 2 . 2 1 2 2 . . 2 . 1 . . 12 . 4 9 2 47 Attach 126 | 3 . 15 6 26 3 . 1 . 1 . 1 . . . . 2 . . 2 2 7 9 8 40 Detach 10 | . . . . 2 . . . . . . . . . . . 1 . . 1 . . . 3 3 Swap 155 | 1 1 16 15 27 4 4 3 5 2 1 4 1 . 2 1 15 . 1 9 . 12 7 1 23 Drop 237 | . . 20 27 17 4 2 4 4 2 6 10 . . 2 2 6 . . 22 1 14 22 4 68 Fire 769 | 5 11 108 84 127 14 6 . 36 . 2 16 3 1 5 2 63 3 2 4 17 58 48 14 140 Melee 38 | . . 1 4 9 . . . . . . . . . . . . . . 9 . . . . 15 Ram . | . . . . . . . . . . . . . . . . . . . . . . . . . Kick 2 | . . . . 1 . . . . . . . . . . . . . . . . . . . 1 Crush . | . . . . . . . . . . . . . . . . . . . . . . . . . Escape Stasis 11 | . . . . 3 . . . . . . 6 . . . . . . . . . . 2 . . Rewire 1 | . . . . . . . . . . 1 . . . . . . . . . . . . . . Trap . | . . . . . . . . . . . . . . . . . . . . . . . . . Miscellaneous . | . . . . . . . . . . . . . . . . . . . . . . . . . Route ------- -11/Scrapyard -10/Materials -10/Subcaves (discovered 2 exits: *Mat x2) -8/Materials -7/Factory (discovered 3 exits: *Fac / *Low x2) -7/Lower Caves -7/Lower Caves -7/Zion -6/Proximity Caves -6/Factory -6/Waste -6/Factory (discovered 6 exits: Fac x4 / *Low x2) -6/Lower Caves -6/Lower Caves (discovered 2 exits: Fac / *Dat) -6/Data Miner -5/Proximity Caves -5/Factory (discovered 4 exits: *Fac x2 / *Upp x2) -5/Upper Caves -5/Upper Caves -5/Warlord -4/Proximity Caves -4/Factory (discovered 4 exits: *Upp x2 / *Ext x2) -4/Extension (discovered 2 exits: *Res / *Cet) -4/Cetus (discovered 2 exits: *Res / [*Arc]) -3/Research History --------- Turn | Location | Event 13 | -11/Scrapyard | Discovered new exit (range 15) 69 | -11/Scrapyard | Entered Materials 317 | -10/Materials | Build established: Mutant 374 | -10/Materials | Discovered new exit (range 3) 380 | -10/Materials | Entered Subcaves 473 | -10/Subcaves | Visited Clippyterm 748 | -10/Subcaves | Learned location of Storage (-9) 1189 | -10/Subcaves | Learned location of Zion (-7) 1189 | -10/Subcaves | Met a Zionite searching for "candidates" 1334 | -10/Subcaves | A swath of the cavern ceiling suddenly collapsed 2269 | -10/Subcaves | Shifting Twisted Machinery released Sub. Machine Gun 2276 | -10/Subcaves | Shifting Twisted Machinery released Battle Rifle 2453 | -10/Subcaves | Shifting Twisted Machinery released Sub. Machine Gun 2464 | -10/Subcaves | Shifting Twisted Machinery released Battle Rifle 2681 | -10/Subcaves | Discovered new exit (range 11) 2830 | -10/Subcaves | Ambushed by Subdweller buried in earth 2850 | -10/Subcaves | Core integrity fell below 50% 3043 | -10/Subcaves | Disturbed a concealed Subdweller 3159 | -10/Subcaves | A swath of the cavern ceiling suddenly collapsed 3187 | -10/Subcaves | Shifting Twisted Machinery released Mak. Light Armor Plating 3475 | -10/Subcaves | Discovered new exit (range 13) 4428 | -10/Subcaves | Entered Materials 4428 | -8/Materials | Evolved 4 slots: Propulsion x2, Utility x2 4516 | -8/Materials | Garrison activated, responded to threat 4830 | -8/Materials | Found Prototype Device 4830 | -8/Materials | Identified Active Sensor Suite 5451 | -8/Materials | Destroyed 7 combat bots 5601 | -8/Materials | Build established: Scavenger-Skirmisher 5784 | -8/Materials | Discovered new exit (range 7) 5793 | -8/Materials | Identified exit to Factory 5823 | -8/Materials | Entered Factory 5823 | -7/Factory | Evolved 2 slots: Utility x2 6473 | -7/Factory | Fabricated Drone Bay? 6609 | -7/Factory | Garrison activated, responded to threat 7243 | -7/Factory | Identified exit to Lower Caves 7369 | -7/Factory | Lost 3 parts (2u1w) 7423 | -7/Factory | First assault squad dispatched 7450 | -7/Factory | Build established: Scavenger-Mutant 7667 | -7/Factory | Crushed by falling debris 7694 | -7/Factory | Crushed by falling debris 7709 | -7/Factory | Crushed by falling debris 7710 | -7/Factory | System corruption reached 10% 7719 | -7/Factory | Crushed by falling debris 7720 | -7/Factory | Core integrity fell below 50% 7750 | -7/Factory | Lost 8 parts (3n3u2w) 8119 | -7/Factory | Found Prototype Launcher 8119 | -7/Factory | Identified Rocket Array 8350 | -7/Factory | Discovered new exit (range 10) 8379 | -7/Factory | Entered Lower Caves 8418 | -7/Lower Caves | Lost 4 parts (3u1w) 8965 | -7/Lower Caves | Discovered new exit (range 7) 8975 | -7/Lower Caves | Identified exit to Lower Caves 9003 | -7/Lower Caves | Entered another Lower Caves area 9444 | -7/Lower Caves | Discovered new exit (range 5) 9453 | -7/Lower Caves | Learned Factory terminal intel 9469 | -7/Lower Caves | Identified exit to Zion 9470 | -7/Lower Caves | Entered Zion 9511 | -7/Zion | Learned Factory emergency access door positions 9542 | -7/Zion | Discovered new exit (range 15) 9642 | -7/Zion | System corruption cleaned by Quarantine Array 9697 | -7/Zion | Learned location of Armory (-3) 9736 | -7/Zion | Gained Derelict followers 9905 | -7/Zion | Gained Derelict followers 10092 | -7/Zion | Given the Hacking Drone Bay 10093 | -7/Zion | Found Prototype Device 10240 | -7/Zion | Visited the Megawrench Repair Shop 10418 | -7/Zion | Megawrench repaired 12 parts 10719 | -7/Zion | Identified exit to Proximity Caves 10743 | -7/Zion | Entered Proximity Caves 10743 | -6/Proximity Caves | Accompanied by 7 allies 10824 | -6/Proximity Caves | Attracted the attention of an 0b10 outpost 10864 | -6/Proximity Caves | Lost 4 allies 10966 | -6/Proximity Caves | Attracted the attention of an 0b10 checkpoint 11002 | -6/Proximity Caves | Lost 3 allies 11371 | -6/Proximity Caves | Discovered new exit (range 10) 11400 | -6/Proximity Caves | Identified exit to Factory 11402 | -6/Proximity Caves | Entered Factory 11402 | -6/Factory | Evolved 2 slots: Utility x2 11404 | -6/Factory | Loaded intel: 26 terminal locations 11422 | -6/Factory | Identified Hacking Drone Bay 11476 | -6/Factory | Sucked down chute 11476 | -6/Factory | Entered Waste 11477 | -6/Waste | Joined by Warlord forces that had cleared the area 11743 | -6/Waste | Discovered new exit (range 16) 11751 | -6/Waste | Found Prototype Hackware 11751 | -6/Waste | Identified Exp. System Shield 11826 | -6/Waste | A Compactor rumbled back to life 11826 | -6/Waste | Spotted C-40 Crusher 11832 | -6/Waste | Destroyed C-40 Crusher 11841 | -6/Waste | Identified exit to Factory 11862 | -6/Waste | Entered Factory 11862 | -6/Factory | Accompanied by 20 allies 12201 | -6/Factory | Lost 3 allies 12233 | -6/Factory | Fabricated Micro-nuke Launcher? 12292 | -6/Factory | Build established: Mutant 12299 | -6/Factory | Identified exit to Factory 12300 | -6/Factory | Identified exit to Lower Caves 12476 | -6/Factory | Entered Lower Caves 12476 | -6/Lower Caves | Accompanied by 15 allies 12703 | -6/Lower Caves | Attacked by a faux Warlord 12897 | -6/Lower Caves | Discovered new exit (range 5) 12902 | -6/Lower Caves | Identified exit to Lower Caves 12925 | -6/Lower Caves | Entered another Lower Caves area 12925 | -6/Lower Caves | Accompanied by 12 allies 13005 | -6/Lower Caves | Learned location of 1 exit from Factory 13093 | -6/Lower Caves | Identified exit to Data Miner 13093 | -6/Lower Caves | Learned location of 1 exit from Lower Caves 13093 | -6/Lower Caves | Learned Factory trap positions 13093 | -6/Lower Caves | Learned Armory trap positions 13327 | -6/Lower Caves | Entered Data Miner 13327 | -6/Data Miner | Accompanied by 10 allies 13327 | -6/Data Miner | Discovered new exit (range 6) 13350 | -6/Data Miner | Met Data Miner 13372 | -6/Data Miner | Learned location of Section 7 (-2) 13372 | -6/Data Miner | Acquired the access code to Warlord's prototype stash 13394 | -6/Data Miner | Received God Mode back door access code from Data Miner 13410 | -6/Data Miner | Data Conduit disabled 13459 | -6/Data Miner | Identified exit to Proximity Caves 13497 | -6/Data Miner | Entered Proximity Caves 13497 | -5/Proximity Caves | Accompanied by 10 allies 13562 | -5/Proximity Caves | Learned location of 1 exit from Factory 13765 | -5/Proximity Caves | Entered Factory 13765 | -5/Factory | Accompanied by 10 allies 13765 | -5/Factory | Evolved 2 slots: Power x1, Propulsion x1 13766 | -5/Factory | Identified exit to Factory 13767 | -5/Factory | Identified exit to Upper Caves 13768 | -5/Factory | Loaded intel: 84 trap records 13904 | -5/Factory | Lost 4 allies 13908 | -5/Factory | Build established: Scavenger-Mutant 14118 | -5/Factory | Garrison activated, responded to threat 14166 | -5/Factory | Lost 3 allies 14724 | -5/Factory | Build established: Hacker-Mutant 15044 | -5/Factory | Entered Upper Caves 15116 | -5/Upper Caves | Learned Factory security intel 15121 | -5/Upper Caves | Spotted B-75 Beast 15494 | -5/Upper Caves | Discovered new exit (range 10) 15526 | -5/Upper Caves | Identified exit to Upper Caves 15528 | -5/Upper Caves | Entered another Upper Caves area 15589 | -5/Upper Caves | Learned 12 Factory zone layouts 15961 | -5/Upper Caves | Discovered new exit (range 9) 15969 | -5/Upper Caves | Identified exit to Warlord 15973 | -5/Upper Caves | Entered Warlord 16059 | -5/Warlord | Discovered new exit (range 9) 16120 | -5/Warlord | System corruption cleaned by Quarantine Array 16584 | -5/Warlord | Warlord's base attacked by MAIN.C 16611 | -5/Warlord | Found Prototype Energy Cannon 16611 | -5/Warlord | Identified Vortex Driver 16621 | -5/Warlord | Found Vortex Driver 16675 | -5/Warlord | Met Warlord 16686 | -5/Warlord | Opened Warlord's prototype stash 16690 | -5/Warlord | Found Prototype Reactor 16690 | -5/Warlord | Identified Vortex Chain Reactor 16703 | -5/Warlord | Found Prototype Device 16703 | -5/Warlord | Identified Exp. Focal Shield 16708 | -5/Warlord | Found Prototype Hackware 16708 | -5/Warlord | Identified System Mapper 16925 | -5/Warlord | Spotted Executioner 16930 | -5/Warlord | Spotted Executioner 16934 | -5/Warlord | Warlord forces counterattacked 16966 | -5/Warlord | Lost 3 allies 17060 | -5/Warlord | Lost 4 allies 17084 | -5/Warlord | Spotted Striker 17092 | -5/Warlord | Spotted Executioner 17124 | -5/Warlord | Spotted Striker 17159 | -5/Warlord | Lost 11 allies 17173 | -5/Warlord | Opened side exit 17201 | -5/Warlord | Identified exit to Proximity Caves 17202 | -5/Warlord | Entered Proximity Caves 17701 | -4/Proximity Caves | Spotted B-86 Titan 17804 | -4/Proximity Caves | Discovered exit to Factory (range 16) 17822 | -4/Proximity Caves | Entered Factory 17822 | -4/Factory | Evolved 2 slots: Propulsion x1, Utility x1 17976 | -4/Factory | Discovered new exit (range 11) 17986 | -4/Factory | Identified exit to Upper Caves 18175 | -4/Factory | Fabricated Combat Drone Bay (x1) 18339 | -4/Factory | Repaired Adv. Shield Generator 18854 | -4/Factory | Found Prototype Device 18854 | -4/Factory | Identified Active Sensor Suite 18891 | -4/Factory | Identified exit to Extension 18952 | -4/Factory | Entered Extension 18981 | -4/Extension | Disrupted transfer network 19157 | -4/Extension | Build established: Hacker-Skirmisher 19331 | -4/Extension | Rescued A7 19581 | -4/Extension | Spotted B-86 Titan 19598 | -4/Extension | Rescued a captive Derelict 19619 | -4/Extension | Destroyed B-86 Titan 19675 | -4/Extension | Rescued a captive Derelict 19729 | -4/Extension | Rescued a captive Derelict 19760 | -4/Extension | Rescued a captive Derelict 19760 | -4/Extension | Rescued a captive Derelict 19787 | -4/Extension | Rescued a captive Derelict 19789 | -4/Extension | Rescued a captive Derelict 19934 | -4/Extension | Spotted B-86 Titan 19952 | -4/Extension | Allies destroyed B-86 Titan 20022 | -4/Extension | Allied Derelicts emerged from ambush trap array 20096 | -4/Extension | Rescued a captive Derelict 20097 | -4/Extension | Rescued a captive Derelict 20279 | -4/Extension | Discovered new exit (range 10) 20280 | -4/Extension | Discovered new exit (range 6) 20294 | -4/Extension | Identified exit to Research 20313 | -4/Extension | Identified exit to Cetus 20315 | -4/Extension | Entered Cetus 20315 | -4/Cetus | Accompanied by 12 allies (A7) 20320 | -4/Cetus | Acquired a Cetus Manufacturing Module code from A7 20338 | -4/Cetus | Spotted Cetus Guard 20338 | -4/Cetus | Spotted Cetus Guard 20341 | -4/Cetus | Destroyed Cetus Guard 20342 | -4/Cetus | Allies destroyed Cetus Guard 20348 | -4/Cetus | Spotted Cetus Guard 20350 | -4/Cetus | Allies destroyed Cetus Guard 20398 | -4/Cetus | Started Cetus Manufacturing Module 20409 | -4/Cetus | Escorted A7 to Cetus Mainframe 20423 | -4/Cetus | Manufactured an Enhanced Grunt 20448 | -4/Cetus | Manufactured an Enhanced Grunt 20473 | -4/Cetus | Manufactured an Enhanced Grunt 20477 | -4/Cetus | Discovered new exit (range 16) 20498 | -4/Cetus | Manufactured an Enhanced Grunt 20523 | -4/Cetus | Manufactured an Enhanced Grunt 20562 | -4/Cetus | Spotted Cetus Guard 20563 | -4/Cetus | Spotted Cetus Guard 20563 | -4/Cetus | Spotted Cetus Guard 20576 | -4/Cetus | Destroyed Cetus Guard 20577 | -4/Cetus | Spotted Cetus Guard 20577 | -4/Cetus | Allies destroyed Cetus Guard 20582 | -4/Cetus | Allies destroyed Cetus Guard 20604 | -4/Cetus | Lost 3 allies 20608 | -4/Cetus | Discovered exit to Research (range 16) 20614 | -4/Cetus | Met Revision 17 20638 | -4/Cetus | Build established: Hacker-Mutant 20647 | -4/Cetus | Entered Research 20647 | -3/Research | Accompanied by 13 allies (A7) 20647 | -3/Research | Evolved 2 slots: Utility x2 20652 | -3/Research | Received a hacking code to weaken MAIN.C 20793 | -3/Research | Murdered 3 allies 20847 | -3/Research | Revision forces began assault on 0b10 20903 | -3/Research | Met up with Revision 17++ 20916 | -3/Research | Lost 6 allies 21148 | -3/Research | Found Prototype Slashing Weapon 21148 | -3/Research | Identified Centrium Greatsword 21347 | -3/Research | Research terminal network offline 21851 | -3/Research | Spotted Striker 21851 | -3/Research | Spotted Executioner 21870 | -3/Research | Destroyed Striker 21898 | -3/Research | Found Prototype Processor 21898 | -3/Research | Identified Exp. Core Analyzer 21907 | -3/Research | Found Prototype Processor 21908 | -3/Research | Identified Exp. Targeting Computer 21981 | -3/Research | Spotted Striker 21982 | -3/Research | Spotted Executioner 21985 | -3/Research | Destroyed Executioner 21997 | -3/Research | Destroyed Striker 22009 | -3/Research | Found Exp. Core Analyzer 22015 | -3/Research | Found Prototype Device 22015 | -3/Research | Identified Adv. Kinecellerator 22112 | -3/Research | Repaired Force Field 22271 | -3/Research | Spotted Striker 22275 | -3/Research | Spotted Striker 22293 | -3/Research | Destroyed Striker 22310 | -3/Research | Spotted Executioner 22314 | -3/Research | Destroyed Executioner 22333 | -3/Research | Spotted Striker 22418 | -3/Research | Spotted Striker 22445 | -3/Research | Destroyed Striker 22573 | -3/Research | Spotted Striker 22627 | -3/Research | Lost 3 parts (1n1u1w) 22717 | -3/Research | Spotted Striker 22791 | -3/Research | Spotted Striker 22815 | -3/Research | Destroyed Striker 22909 | -3/Research | Build established: Scavenger-Mutant 22975 | -3/Research | Spotted Executioner 22977 | -3/Research | Spotted Striker 22986 | -3/Research | Destroyed Executioner 22990 | -3/Research | Destroyed Striker 23022 | -3/Research | Spotted Striker 23031 | -3/Research | Lost 4 parts (1n3u) 23031 | -3/Research | Spotted Striker 23033 | -3/Research | Destroyed Striker 23084 | -3/Research | Core integrity fell below 50% 23087 | -3/Research | Destroyed Striker 23111 | -3/Research | Lost 4 parts (1p1n2u) 23151 | -3/Research | Destroyed Striker 23240 | -3/Research | Destroyed 8 combat bots 23244 | -3/Research | Lost 11 parts (1p5n2u3w) 23264 | -3/Research | Spotted Striker 23269 | -3/Research | Spotted Executioner 23309 | -3/Research | Destroyed Striker 23314 | -3/Research | Spotted Striker 23317 | -3/Research | Spotted Executioner 23318 | -3/Research | Spotted Striker 23327 | -3/Research | Core integrity fell below 20% 23327 | -3/Research | Found Exp. Core Analyzer 23333 | -3/Research | Spotted Striker 23333 | -3/Research | Spotted Executioner 23341 | -3/Research | Destroyed by P-80 Master with Gamma Rifle Last Messages --------------- 23314_ Dropped Neutron Missile Launcher. 23314_ Dropped Railgun. 23314_ Penetrated by Slug. 23314_ Slug penetrates Earth. 23317_ Penetrated by Slug. 23317_ Slug penetrates Wall. 23317_ Executioner destroyed. 23319_ Exp. Heat Sink blasted off. 23319_ Knocked back. 23320_ Acquired 77 matter. 23322_ Flexi-carbon Leg destroyed. 23322_ Knocked back. 23326_ Flexi-carbon Leg destroyed. 23327_ The unstable cave ceiling collapses. 23327_ Acquired Exp. Core Analyzer. 23329_ Acquired 63 matter. 23330_ Flexi-carbon Leg destroyed. 23331_ System corrupted: Enh. Biometal Leg rejected. 23336_ Exp. Core Analyzer destroyed. Map ----- +----------------------------------------------------+ | ?????????????????????????????????????+ % | | ?????????????????????????????????????# ####"#"# | | ?????????????????????????????????????# # ! | | ?????????????????????????????????????# # | | ?????????????????????????????????????# # """ | | ??????????????????????????????????#### # "Y" | | ???????????????????????############"## # | | ???????????????????????# * # " | | ???????????????????????# # # | | ???????????????????????# ! #! " | | ???????????????????????# # ! [######+# | | ???????????????????????# ["#%===%[ | | ????????????????##?????# %%/%%=%*! % | | ??????????#######"###### ! "#**%!!%[![!%! | | ??????????# =%!% ! # = # !%= %*%!= | | ??????????#% *!!*! " ! " # [ | | ???????????? ""=%=""" # *%p= # # # | | ??????????#??"""%=%"" #######!;###### | | ??????????# """![ """ # =%!%!%=[! | | ??????????# = %"/ [**=%%!!= | | ??????????# # ![!*!*! | | ??????????# """ """ K# !=!== # ? | | ??????????#??""" """ #+##;######"######## ? | | ?????????????""" """ ; ]###???????? ? | | ???????????? # #?????????? * ??? | | ??????????# = !# @ #???????????????? | | ??????????############## ! #???????????????? | | ???????????????????????# !!! #???????????????? | | ???????????????????????# !!! #???????????????? | | ???????????????????????# !!! #???????????????? | | ???????????????????????# = #???????????????? | | ???????????????????????########;##???????????????? | | ???????????????????????????????# #???????????????? | | ????????????????????????????????##???????????????? | | ?????????????????????????????????????????????????? | | ?????????????????????????????????????????????????? | | ?????????????????????????????????????????????????? | | ?????????????????????????????????????????????????? | | ?????????????????????????????????????????????????? | | ?????????????????????????????????????????????????? | | ?????????????????????????????????????????????????? | | ?????????????????????????????????????????????????? | | ?????????????????????????????????????????????????? | | ?????????????????????????????????????????????????? | | ?????????????????????????????????????????????????? | | ?????????????????????????????????????????????????? | | ?????????????????????????????????????????????????? | | ?????????????????????????????????????????????????? | | ?????????????????????????????????????????????????? | | ?????????????????????????????????????????????????? | +----------------------------------------------------+ Best States ------------- Heat Dissipation 73 Coolant Potential 50 Energy Generation 65 Energy Capacity 1020 Matter Stores 300 Matter Capacity 300 Sight Range 21 Robot Scan Range 20 Terrain Scan Range 16 Terrain Scan Density 10 Jamming Range 14 Power Amplification 30 Additional Mass Support 12 EM Shielding 2 Corruption Block 8 Armor Coverage 450 Resistance: KI 30 Resistance: EM 25 Phase Shifting 10 Evasion (%) 65 Targeting Accuracy 12 Core Analysis 12 Recoil Reduction 4 Particle Charging 25 Kinecelleration 50 Offensive Hacking 34 Defensive Hacking 28 Authchip Count 1 Item Schematics ----------------- Combat Drone Bay | -6/Data Miner | Free Lgt. Regenerative Plating | -6/Data Miner | Free Cld. Nuclear Pulse Thruster | -6/Data Miner | Free Imp. Matter Compressor | -6/Data Miner | Free Enh. Coil Gun | -6/Data Miner | Free Adv. Medium Treads | -6/Data Miner | Free Imp. Phase Shifter | -6/Data Miner | Free Phase Gun | -6/Data Miner | Free Hvy. Disruptor Cannon | -6/Data Miner | Free Adv. Weapon Cycler | -6/Data Miner | Free Robot Schematics ------------------ R-10 Processor | -6/Data Miner | Free B-48 Gladiator | -6/Data Miner | Free L-41 Fighter | -6/Data Miner | Free X-67 Chaingunner | -6/Data Miner | Free G-50 Soldier | -6/Data Miner | Free X-77 Beamer | -6/Data Miner | Free Fabricated ------------ Drone Bay | x1 | -7/Factory | Preloaded Micro-nuke Launcher | x1 | -6/Factory | Preloaded Combat Drone Bay | x1 | -4/Factory Alien Tech Used ----------------- None Achievements -------------- None Challenges ------------ None Game ------ Seed ChromaticRestorationPit Manual? 0 Play Time 03:56:27 Cumulative 167.6 hours Start 2024.04.30 @ 22:57:10 End 2024.05.01 @ 12:24:22 Sessions 3 Manual Loads 0 Difficulty Rogue Special Mode None Game No. 67 Rogue 53 Adventurer 14 Explorer 0 Win Type - Total 11 Types 9/0/0/1/0/0/0/0/1 Lore% 63 Gallery% 75 Achievement% 63 Wizard Run 0 Options --------- Layout 2 ASCII 0 Keyboard 0 Movement Mouse Keybinds 0 Fullscreen 1 Font 20/SmallcapsGlow Map View 50x44 Zoom Use 0% Tactical HUD 1 Map Filters NONE Filters NONE Steam 1 RUN: 8ab0af43-1ab2-4c84-afc8-2d05e3195377